fUST/lending_fUST_20250622
["ID","MTS","AMOUNT","RATE_DAILY","PERIOD"]
[366869230,1750531839594,-502.89588017,0.00021917,2]
[366869232,1750531839603,-472.93545607,0.00021917,2]
[366869234,1750531839613,-460.0,0.00021917,2]
[366869236,1750531839622,-383.01188202,0.00021917,2]
[366869238,1750531839632,-405.18193568,0.00021917,2]
[366869240,1750531839642,-460.0,0.00021917,2]
[366869242,1750531839652,-574.49270441,0.00021917,2]
[366869244,1750531839662,-460.0,0.00021917,2]
[366869246,1750531839672,-518.86154578,0.00021917,2]
[366869248,1750531839682,-460.0,0.00021917,2]
[366869250,1750531839693,-461.2851877,0.00021917,2]
[366869252,1750531839703,-460.0,0.00021917,2]
[366869254,1750531839713,-460.0,0.00021917,2]
[366869256,1750531839722,-461.78992662,0.00021917,2]
[366869258,1750531839732,-405.46271367,0.00021917,2]
[366869260,1750531839741,-460.0,0.00021917,2]
[366869262,1750531839750,-376.6514674,0.00021917,2]
[366869264,1750531839760,-545.5797629,0.00021917,2]
[366869266,1750531839769,-1012.06478186,0.00021917,2]
[366869268,1750531839778,-470.79875057,0.00021917,2]
[366869270,1750531839788,-151.0,0.00021917,2]
[366869272,1750531839799,-151.0,0.00021917,2]
[366869274,1750531839808,-434.66145994,0.00021917,2]
[366869276,1750531839819,-506.77225842,0.00021917,2]
[366869278,1750531839828,-460.0,0.00021917,2]
[366869280,1750531839837,-460.0,0.00021917,2]
[366869282,1750531839847,-465.03737209,0.00021917,2]
[366869284,1750531839857,-460.0,0.00021917,2]
[366869286,1750531839866,-460.0,0.00021917,2]
[366869288,1750531839876,-460.0,0.00021917,2]
[366869290,1750531839885,-441.76463578,0.00021917,2]
[366869292,1750531839895,-406.87191575,0.00021917,2]
[366869294,1750531839904,-460.0,0.00021917,2]
[366869296,1750531839913,-150.0,0.00021917,2]
[366869298,1750531839922,-460.0,0.00021917,2]
[366869299,1750531839931,-460.0,0.00021917,2]
[366869301,1750531839941,-604.13693212,0.00021917,2]
[366869303,1750531839949,-290.77228399,0.00021917,2]
[366869306,1750531839959,-425.26219046,0.00021917,2]
[366869308,1750531839968,-460.0,0.00021917,2]
[366869311,1750531839978,-404.05466958,0.00021917,2]
[366869313,1750531839987,-522.73462613,0.00021917,2]
[366869315,1750531839996,-151.0,0.00021917,2]
[366869317,1750531840006,-151.0,0.00021917,2]
[366869319,1750531840015,-151.0,0.00021917,2]
[366869321,1750531840024,-460.0,0.00021917,2]
[366869323,1750531840034,-336.04756319,0.00021917,2]
[366869325,1750531840043,-460.0,0.00021917,2]
[366869327,1750531840053,-460.0,0.00021917,2]
[366869329,1750531840063,-469.89835071,0.00021917,2]
[366869331,1750531840072,-460.0,0.00021917,2]
[366869333,1750531840082,-460.0,0.00021917,2]
[366869335,1750531840092,-378.7832482,0.00021917,2]
[366869337,1750531840101,-460.0,0.00021917,2]
[366869339,1750531840111,-460.0,0.00021917,2]
[366869341,1750531840120,-310.23055379,0.00021917,2]
[366869343,1750531840129,-460.0,0.00021917,2]
[366869345,1750531840139,-460.0,0.00021917,2]
[366869347,1750531840148,-419.75326746,0.00021917,2]
[366869349,1750531840157,-460.0,0.00021917,2]
[366869351,1750531840166,-460.0,0.00021917,2]
[366869353,1750531840175,-460.0,0.00021917,2]
[366869355,1750531840185,-466.43058577,0.00021917,2]
[366869357,1750531840195,-460.0,0.00021917,2]
[366869359,1750531840204,-467.39272581,0.00021917,2]
[366869361,1750531840213,-461.40631368,0.00021917,2]
[366869362,1750531840222,-460.0,0.00021917,2]
[366869364,1750531840231,-469.61713268,0.00021917,2]
[366869366,1750531840240,-463.58991103,0.00021917,2]
[366869368,1750531840249,-407.96462498,0.00021917,2]
[366869370,1750531840259,-151.0,0.00021917,2]
[366869372,1750531840268,-151.000001,0.00021917,2]
[366869374,1750531840278,-151.0,0.00021917,2]
[366869376,1750531840287,-151.0,0.00021917,2]
[366869378,1750531840297,-151.0,0.00021917,2]
[366869380,1750531840306,-151.0,0.00021917,2]
[366869382,1750531840316,-309.33267516,0.00021917,2]
[366869384,1750531840325,-151.0,0.00021917,2]
[366869386,1750531840335,-460.0,0.00021917,2]
[366869388,1750531840344,-460.0,0.00021917,2]
[366869390,1750531840353,-367.82321371,0.00021917,2]
[366869392,1750531840362,-211.36062804,0.00021917,2]
[366869394,1750531840372,-464.25180163,0.00021917,2]
[366869396,1750531840385,-460.0,0.00021917,2]
[366869397,1750531840394,-467.6356029,0.00021917,2]
[366869400,1750531840404,-290.808472,0.00021917,2]
[366869401,1750531840414,-200.0,0.00021917,2]
[366869402,1750531840423,-367.78967143,0.00021917,2]
[366869403,1750531840433,-460.0,0.00021917,2]
[366869405,1750531840443,-460.0,0.00021917,2]
[366869406,1750531840453,-460.0,0.00021917,2]
[366869407,1750531840463,-460.0,0.00021917,2]
[366869408,1750531840473,-460.0,0.00021917,2]
[366869409,1750531840483,-467.14367537,0.00021917,2]
[366869410,1750531840493,-460.0,0.00021917,2]
[366869411,1750531840503,-192.715596,0.00021917,2]
[366869412,1750531840513,-460.0,0.00021917,2]
[366869413,1750531840523,-477.74549284,0.00021917,2]
[366869414,1750531840533,-460.0,0.00021917,2]
[366869415,1750531840543,-460.0,0.00021917,2]
[366869416,1750531840553,-460.0,0.00021917,2]
[366869417,1750531840563,-485.48965219,0.00021917,2]
[366869418,1750531840572,-460.0,0.00021917,2]
[366869419,1750531840581,-448.2412341,0.00021917,2]
[366869420,1750531840591,-460.0,0.00021917,2]
[366869421,1750531840601,-460.0,0.00021917,2]
[366869422,1750531840611,-460.0,0.00021917,2]
[366869423,1750531840620,-470.41840086,0.00021917,2]
[366869424,1750531840631,-460.0,0.00021917,2]
[366869425,1750531840641,-460.0,0.00021917,2]
[366869426,1750531840650,-460.0,0.00021917,2]
[366869427,1750531840662,-460.0,0.00021917,2]
[366869428,1750531840672,-549.04169163,0.00021917,2]
[366869429,1750531840681,-355.86813998,0.00021917,2]
[366869430,1750531840691,-460.0,0.00021917,2]
[366869431,1750531840701,-325.98570423,0.00021917,2]
[366869432,1750531840711,-458.86380977,0.00021917,2]
[366869433,1750531840720,-460.0,0.00021917,2]
[366869434,1750531840729,-456.27557176,0.00021917,2]
[366869435,1750531840739,-460.0,0.00021917,2]
[366869436,1750531840749,-460.0,0.00021917,2]
[366869437,1750531840759,-282.8494936,0.00021917,2]
[366869438,1750531840768,-460.0,0.00021917,2]
[366869439,1750531840779,-460.0,0.00021917,2]
[366869440,1750531840788,-460.0,0.00021917,2]
[366869441,1750531840798,-460.0,0.00021917,2]
[366869442,1750531840807,-425.66243965,0.00021917,2]
[366869443,1750531840816,-438.40972841,0.00021917,2]
[366869444,1750531840826,-460.0,0.00021917,2]
[366869445,1750531840835,-465.00490995,0.00021917,2]
[366869446,1750531840845,-460.0,0.00021917,2]
[366869447,1750531840855,-460.0,0.00021917,2]
[366869448,1750531840864,-472.57383525,0.00021917,2]
[366869449,1750531840874,-464.02383435,0.00021917,2]
[366869450,1750531840884,-460.0,0.00021917,2]
[366869451,1750531840893,-424.7930537,0.00021917,2]
[366869452,1750531840903,-375.0480701,0.00021917,2]
[366869453,1750531840912,-460.0,0.00021917,2]
[366869454,1750531840922,-460.0,0.00021917,2]
[366869456,1750531840931,-363.86400074,0.00021917,2]
[366869457,1750531840940,-439.25126957,0.00021917,2]
[366869458,1750531840950,-460.0,0.00021917,2]
[366869459,1750531840959,-462.11265879,0.00021917,2]
[366869460,1750531840968,-463.71999398,0.00021917,2]
[366869462,1750531840978,-460.0,0.00021917,2]
[366869464,1750531840987,-460.0,0.00021917,2]
[366869465,1750531840997,-460.0,0.00021917,2]
[366869466,1750531841006,-460.0,0.00021917,2]
[366869467,1750531841016,-466.14763216,0.00021917,2]
[366869468,1750531841025,-460.0,0.00021917,2]
[366869469,1750531841034,-460.0,0.00021917,2]
[366869471,1750531841044,-460.0,0.00021917,2]
[366869473,1750531841053,-451.96176832,0.00021917,2]
[366869474,1750531841063,-214.38431434,0.00021917,2]
[366869475,1750531841072,-460.0,0.00021917,2]
[366869476,1750531841083,-460.0,0.00021917,2]
[366869477,1750531841092,-460.0,0.00021917,2]
[366869478,1750531841101,-471.96896082,0.00021917,2]
[366869479,1750531841111,-293.56144762,0.00021917,2]
[366869480,1750531841120,-486.85903327,0.00021917,2]
[366869481,1750531841130,-469.95226643,0.00021917,2]
[366869482,1750531841139,-460.0,0.00021917,2]
[366869483,1750531841149,-474.954232,0.00021917,2]
[366869484,1750531841159,-460.0,0.00021917,2]
[366869485,1750531841167,-460.0,0.00021917,2]
[366869486,1750531841177,-460.0,0.00021917,2]
[366869487,1750531841186,-460.0,0.00021917,2]
[366869488,1750531841195,-174.81269628,0.00021917,2]
[366869489,1750531841205,-460.0,0.00021917,2]
[366869490,1750531841214,-461.7807985,0.00021917,2]
[366869491,1750531841223,-151.0,0.00021917,2]
[366869492,1750531841233,-151.0,0.00021917,2]
[366869493,1750531841242,-151.0,0.00021917,2]
[366869494,1750531841251,-151.0,0.00021917,2]
[366869495,1750531841333,-288.744084,0.00021917,2]
[366869496,1750531841343,-538.43952244,0.00021917,2]
[366869497,1750531841352,-460.0,0.00021917,2]
[366869498,1750531841361,-460.0,0.00021917,2]
[366869499,1750531841371,-466.51822445,0.00021917,2]
[366869500,1750531841385,-460.0,0.00021917,2]
[366869501,1750531841394,-460.0,0.00021917,2]
[366869502,1750531841403,-460.0,0.00021917,2]
[366869503,1750531841412,-460.0,0.00021917,2]
[366869504,1750531841423,-427.02954553,0.00021917,2]
[366869505,1750531841432,-463.58524822,0.00021917,2]
[366869506,1750531841441,-460.0,0.00021917,2]
[366869507,1750531841450,-460.0,0.00021917,2]
[366869508,1750531841460,-460.0,0.00021917,2]
[366869509,1750531841469,-460.0,0.00021917,2]
[366869510,1750531841478,-460.0,0.00021917,2]
[366869511,1750531841488,-460.0,0.00021917,2]
[366869512,1750531841497,-460.0,0.00021917,2]
[366869513,1750531841506,-460.0,0.00021917,2]
[366869514,1750531841516,-460.0,0.00021917,2]
[366869515,1750531841526,-460.0,0.00021917,2]
[366869516,1750531841535,-460.0,0.00021917,2]
[366869517,1750531841545,-460.0,0.00021917,2]
[366869518,1750531841555,-460.0,0.00021917,2]
[366869519,1750531841564,-222.55,0.00021917,2]
[366869520,1750531841574,-460.0,0.00021917,2]
[366869521,1750531841583,-460.0,0.00021917,2]
[366869522,1750531841592,-460.0,0.00021917,2]
[366869523,1750531841602,-460.0,0.00021917,2]
[366869524,1750531841611,-460.0,0.00021917,2]
[366869525,1750531841621,-460.0,0.00021917,2]
[366869526,1750531841630,-487.56189111,0.00021917,2]
[366869527,1750531841639,-460.0,0.00021917,2]
[366869528,1750531841649,-470.2194395,0.00021917,2]
[366869529,1750531841658,-460.0,0.00021917,2]
[366869530,1750531841668,-460.0,0.00021917,2]
[366869531,1750531841677,-460.0,0.00021917,2]
[366869532,1750531841687,-473.54883121,0.00021917,2]
[366869533,1750531841696,-207.597383,0.00021917,2]
[366869534,1750531841705,-302.22259896,0.00021917,2]
[366869535,1750531841714,-462.74187647,0.00021917,2]
[366869536,1750531841724,-542.67142026,0.00021917,2]
[366869537,1750531841733,-471.49498268,0.00021917,2]
[366869538,1750531841742,-460.0,0.00021917,2]
[366869539,1750531841752,-460.0,0.00021917,2]
[366869540,1750531841762,-500.0,0.00021917,2]
[366869541,1750531841771,-500.0,0.00021917,2]
[366869542,1750531841781,-500.0,0.00021917,2]
[366869543,1750531841790,-500.0,0.00021917,2]
[366869544,1750531841799,-500.0,0.00021917,2]
[366869545,1750531841809,-500.0,0.00021917,2]
[366869546,1750531841817,-504.41932248,0.00021917,2]
[366869547,1750531841827,-460.0,0.00021917,2]
[366869548,1750531841837,-460.0,0.00021917,2]
[366869549,1750531841847,-460.0,0.00021917,2]
[366869550,1750531841856,-356.15170605,0.00021917,2]
[366869551,1750531841866,-460.0,0.00021917,2]
[366869552,1750531841876,-460.0,0.00021917,2]
[366869553,1750531841886,-460.0,0.00021917,2]
[366869554,1750531841896,-460.0,0.00021917,2]
[366869555,1750531841906,-460.0,0.00021917,2]
[366869556,1750531841915,-460.0,0.00021917,2]
[366869557,1750531841925,-460.0,0.00021917,2]
[366869558,1750531841935,-460.0,0.00021917,2]
[366869559,1750531841944,-460.0,0.00021917,2]
[366869560,1750531841953,-460.0,0.00021917,2]
[366869561,1750531841963,-460.0,0.00021917,2]
[366869562,1750531841973,-460.0,0.00021917,2]
[366869563,1750531841982,-460.0,0.00021917,2]
[366869564,1750531841992,-460.0,0.00021917,2]
[366869565,1750531842001,-460.0,0.00021917,2]
[366869566,1750531842010,-246.15218552,0.00021917,2]
[366869567,1750531842019,-460.0,0.00021917,2]
[366869568,1750531842029,-460.0,0.00021917,2]
[366869569,1750531842039,-338.09934342,0.00021917,2]
[366869570,1750531842048,-460.0,0.00021917,2]
[366869571,1750531842058,-460.0,0.00021917,2]
[366869572,1750531842068,-585.27915854,0.00021917,2]
[366869573,1750531842078,-460.0,0.00021917,2]
[366869574,1750531842087,-460.0,0.00021917,2]
[366869575,1750531842096,-460.0,0.00021917,2]
[366869576,1750531842106,-460.0,0.00021917,2]
[366869577,1750531842115,-460.0,0.00021917,2]
[366869578,1750531842125,-460.0,0.00021917,2]
[366869579,1750531842134,-460.0,0.00021917,2]
[366869580,1750531842144,-557.76620687,0.00021917,2]
[366869581,1750531842153,-460.0,0.00021917,2]
[366869582,1750531842163,-460.0,0.00021917,2]
[366869583,1750531842172,-460.0,0.00021917,2]
[366869584,1750531842182,-460.0,0.00021917,2]
[366869585,1750531842191,-460.0,0.00021917,2]
[366869586,1750531842200,-460.0,0.00021917,2]
[366869587,1750531842210,-460.0,0.00021917,2]
[366869588,1750531842219,-460.0,0.00021917,2]
[366869589,1750531842228,-460.0,0.00021917,2]
[366869590,1750531842238,-460.0,0.00021917,2]
[366869591,1750531842248,-259.58,0.00021917,2]
[366869592,1750531842257,-460.0,0.00021917,2]
[366869593,1750531842267,-460.0,0.00021917,2]
[366869594,1750531842276,-460.0,0.00021917,2]
[366869595,1750531842285,-460.0,0.00021917,2]
[366869596,1750531842295,-476.80246605,0.00021917,2]
[366869597,1750531842305,-460.0,0.00021917,2]
[366869598,1750531842314,-151.0,0.00021917,2]
[366869599,1750531842324,-460.0,0.00021917,2]
[366869600,1750531842333,-460.0,0.00021917,2]
[366869601,1750531842343,-420.98887117,0.00021917,2]
[366869602,1750531842352,-460.0,0.00021917,2]
[366869603,1750531842362,-435.0952011,0.00021917,2]
[366869604,1750531842373,-460.0,0.00021917,2]
[366869605,1750531842386,-460.0,0.00021917,2]
[366869606,1750531842397,-471.35509686,0.00021917,2]
[366869607,1750531842406,-460.0,0.00021917,2]
[366869608,1750531842416,-603.57044415,0.00021917,2]
[366869609,1750531842425,-460.0,0.00021917,2]
[366869610,1750531842435,-460.0,0.00021917,2]
[366869611,1750531842444,-466.07935315,0.00021917,2]
[366869612,1750531842454,-460.0,0.00021917,2]
[366869613,1750531842463,-460.0,0.00021917,2]
[366869614,1750531842473,-470.3832344,0.00021917,2]
[366869615,1750531842483,-460.0,0.00021917,2]
[366869616,1750531842493,-460.0,0.00021917,2]
[366869617,1750531842504,-460.0,0.00021917,2]
[366869618,1750531842514,-429.58990734,0.00021917,2]
[366869619,1750531842523,-460.0,0.00021917,2]
[366869620,1750531842532,-460.0,0.00021917,2]
[366869621,1750531842542,-460.0,0.00021917,2]
[366869622,1750531842551,-460.0,0.00021917,2]
[366869623,1750531842560,-460.0,0.00021917,2]
[366869624,1750531842569,-465.21025429,0.00021917,2]
[366869625,1750531842579,-411.43066207,0.00021917,2]
[366869626,1750531842588,-462.40428532,0.00021917,2]
[366869627,1750531842597,-460.0,0.00021917,2]
[366869628,1750531842607,-433.00955512,0.00021917,2]
[366869629,1750531842616,-443.54131262,0.00021917,2]
[366869630,1750531842626,-460.0,0.00021917,2]
[366869631,1750531842636,-460.0,0.00021917,2]
[366869632,1750531842645,-465.49297519,0.00021917,2]
[366869633,1750531842655,-151.0,0.00021917,2]
[366869634,1750531842664,-249.357998,0.00021917,2]
[366869635,1750531842673,-460.0,0.00021917,2]
[366869636,1750531842682,-460.0,0.00021917,2]
[366869637,1750531842691,-460.0,0.00021917,2]
[366869638,1750531842701,-460.0,0.00021917,2]
[366869639,1750531842711,-322.90722861,0.00021917,2]
[366869640,1750531842721,-460.0,0.00021917,2]
[366869641,1750531842731,-460.0,0.00021917,2]
[366869642,1750531842740,-462.00208149,0.00021917,2]
[366869643,1750531842750,-203.83375343,0.00021917,2]
[366869644,1750531842760,-312.96308561,0.00021917,2]
[366869645,1750531842769,-356.15309531,0.00021917,2]
[366869646,1750531842779,-411.57765748,0.00021917,2]
[366869647,1750531842788,-460.0,0.00021917,2]
[366869648,1750531842797,-460.0,0.00021917,2]
[366869649,1750531842808,-424.96095153,0.00021917,2]
[366869650,1750531842818,-460.0,0.00021917,2]
[366869651,1750531842828,-151.0,0.00021917,2]
[366869652,1750531842837,-460.0,0.00021917,2]
[366869653,1750531842846,-151.0,0.00021917,2]
[366869654,1750531842856,-460.0,0.00021917,2]
[366869655,1750531842865,-151.0,0.00021917,2]
[366869656,1750531842875,-460.0,0.00021917,2]
[366869657,1750531842885,-525.49932537,0.00021917,2]
[366869658,1750531842895,-151.0,0.00021917,2]
[366869659,1750531842904,-151.0,0.00021917,2]
[366869660,1750531842914,-151.0,0.00021917,2]
[366869661,1750531842923,-151.0,0.00021917,2]
[366869663,1750531842933,-468.32982669,0.00021917,2]
[366869664,1750531843013,-151.0,0.00021917,2]
[366869665,1750531843023,-151.0,0.00021917,2]
[366869666,1750531843033,-151.0,0.00021917,2]
[366869667,1750531843042,-151.0,0.00021917,2]
[366869668,1750531843051,-151.0,0.00021917,2]
[366869669,1750531843060,-151.0,0.00021917,2]
[366869670,1750531843069,-460.0,0.00021917,2]
[366869671,1750531843078,-151.0,0.00021917,2]
[366869672,1750531843087,-209.42003736,0.00021917,2]
[366869673,1750531843096,-220.224133,0.00021917,2]
[366869674,1750531843106,-460.0,0.00021917,2]
[366869675,1750531843116,-460.0,0.00021917,2]
[366869676,1750531843125,-460.0,0.00021917,2]
[366869677,1750531843135,-468.12205346,0.00021917,2]
[366869678,1750531843145,-460.0,0.00021917,2]
[366869679,1750531843156,-460.0,0.00021917,2]
[366869680,1750531843165,-460.0,0.00021917,2]
[366869681,1750531843174,-478.51385236,0.00021917,2]
[366869682,1750531843183,-461.56773626,0.00021917,2]
[366869683,1750531843193,-557.77431141,0.00021917,2]
[366869684,1750531843202,-460.0,0.00021917,2]
[366869685,1750531843211,-464.02069639,0.00021917,2]
[366869686,1750531843221,-460.0,0.00021917,2]
[366869687,1750531843231,-272.08080864,0.00021917,2]
[366869688,1750531843240,-464.03041042,0.00021917,2]
[366869689,1750531843250,-460.0,0.00021917,2]
[366869690,1750531843260,-460.0,0.00021917,2]
[366869691,1750531843269,-468.26576622,0.00021917,2]
[366869692,1750531843279,-460.0,0.00021917,2]
[366869693,1750531843288,-460.0,0.00021917,2]
[366869695,1750531843298,-460.0,0.00021917,2]
[366869697,1750531843307,-443.40831093,0.00021917,2]
[366869699,1750531843316,-460.0,0.00021917,2]
[366869701,1750531843325,-460.0,0.00021917,2]
[366869702,1750531843335,-460.0,0.00021917,2]
[366869703,1750531843344,-460.0,0.00021917,2]
[366869704,1750531843355,-460.0,0.00021917,2]
[366869705,1750531843364,-460.0,0.00021917,2]
[366869706,1750531843373,-460.0,0.00021917,2]
[366869707,1750531843386,-460.0,0.00021917,2]
[366869708,1750531843396,-466.35496421,0.00021917,2]
[366869709,1750531843405,-460.0,0.00021917,2]
[366869710,1750531843414,-460.0,0.00021917,2]
[366869711,1750531843425,-161.56,0.00021917,2]
[366869712,1750531843434,-388.90925068,0.00021917,2]
[366869714,1750531843443,-151.0,0.00021917,2]
[366869716,1750531843453,-460.0,0.00021917,2]
[366869718,1750531843462,-460.0,0.00021917,2]
[366869719,1750531843471,-460.0,0.00021917,2]
[366869721,1750531843480,-472.95627672,0.00021917,2]
[366869723,1750531843490,-460.0,0.00021917,2]
[366869725,1750531843499,-404.83180233,0.00021917,2]
[366869726,1750531843508,-462.57957504,0.00021917,2]
[366869727,1750531843517,-500.0,0.00021917,2]
[366869728,1750531843527,-500.0,0.00021917,2]
[366869729,1750531843536,-508.54215298,0.00021917,2]
[366869730,1750531843546,-460.0,0.00021917,2]
[366869731,1750531843556,-460.0,0.00021917,2]
[366869732,1750531843565,-460.0,0.00021917,2]
[366869733,1750531843574,-460.0,0.00021917,2]
[366869734,1750531843583,-460.0,0.00021917,2]
[366869735,1750531843593,-460.0,0.00021917,2]
[366869736,1750531843602,-460.0,0.00021917,2]
[366869737,1750531843611,-460.0,0.00021917,2]
[366869738,1750531843621,-460.0,0.00021917,2]
[366869740,1750531843630,-460.0,0.00021917,2]
[366869742,1750531843639,-460.0,0.00021917,2]
[366869743,1750531843649,-602.49,0.00021917,2]
[366869744,1750531843658,-460.0,0.00021917,2]
[366869745,1750531843667,-460.0,0.00021917,2]
[366869746,1750531843677,-460.0,0.00021917,2]
[366869747,1750531843687,-460.0,0.00021917,2]
[366869748,1750531843697,-460.0,0.00021917,2]
[366869749,1750531843707,-460.0,0.00021917,2]
[366869750,1750531843716,-460.0,0.00021917,2]
[366869751,1750531843725,-460.0,0.00021917,2]
[366869752,1750531843735,-460.0,0.00021917,2]
[366869754,1750531843744,-467.73890678,0.00021917,2]
[366869755,1750531843753,-460.0,0.00021917,2]
[366869756,1750531843763,-460.0,0.00021917,2]
[366869757,1750531843772,-460.0,0.00021917,2]
[366869758,1750531843782,-460.0,0.00021917,2]
[366869759,1750531843791,-460.0,0.00021917,2]
[366869760,1750531843801,-185.77,0.00021917,2]
[366869761,1750531843810,-460.0,0.00021917,2]
[366869762,1750531843820,-470.87584311,0.00021917,2]
[366869763,1750531843829,-521.19468451,0.00021917,2]
[366869764,1750531843839,-151.0,0.00021917,2]
[366869765,1750531843848,-460.0,0.00021917,2]
[366869766,1750531843857,-500.0,0.00021917,2]
[366869767,1750531843867,-460.0,0.00021917,2]
[366869768,1750531843877,-500.0,0.00021917,2]
[366869769,1750531843886,-409.4267127,0.00021917,2]
[366869770,1750531843895,-500.0,0.00021917,2]
[366869771,1750531843904,-460.0,0.00021917,2]
[366869772,1750531843914,-500.0,0.00021917,2]
[366869773,1750531843923,-469.75661836,0.00021917,2]
[366869774,1750531843933,-500.0,0.00021917,2]
[366869775,1750531843942,-500.0,0.00021917,2]
[366869776,1750531843951,-186.8659876,0.00021917,2]
[366869777,1750531843961,-431.20326795,0.00021917,2]
[366869778,1750531843970,-460.0,0.00021917,2]
[366869779,1750531843979,-460.0,0.00021917,2]
[366869780,1750531843988,-460.0,0.00021917,2]
[366869781,1750531843997,-467.55980933,0.00021917,2]
[366869782,1750531844007,-472.53501842,0.00021917,2]
[366869783,1750531844017,-460.0,0.00021917,2]
[366869784,1750531844027,-470.6762146,0.00021917,2]
[366869785,1750531844047,-151.0,0.00021917,2]
[366869786,1750531844057,-1934.77,0.00021917,2]
[366869787,1750531844066,-1934.77,0.00021917,2]
[366869788,1750531844076,-1934.77,0.00021917,2]
[366869789,1750531844085,-1934.77,0.00021917,2]
[366869790,1750531844094,-460.0,0.00021917,2]
[366869791,1750531844103,-460.0,0.00021917,2]
[366869792,1750531844113,-460.0,0.00021917,2]
[366869793,1750531844122,-436.09096632,0.00021917,2]
[366869794,1750531844132,-460.0,0.00021917,2]
[366869795,1750531844141,-460.0,0.00021917,2]
[366869796,1750531844151,-303.8188458,0.00021917,2]
[366869797,1750531844160,-151.0,0.00021917,2]
[366869798,1750531844169,-151.0,0.00021917,2]
[366869799,1750531844179,-181.33082,0.00021917,2]
[366869800,1750531844188,-500.0,0.00021917,2]
[366869801,1750531844198,-460.0,0.00021917,2]
[366869802,1750531844207,-460.0,0.00021917,2]
[366869803,1750531844216,-465.45974562,0.00021917,2]
[366869804,1750531844225,-151.0,0.00021917,2]
[366869806,1750531844235,-460.0,0.00021917,2]
[366869807,1750531844243,-460.0,0.00021917,2]
[366869808,1750531844253,-467.45682692,0.00021917,2]
[366869809,1750531844262,-460.0,0.00021917,2]
[366869810,1750531844271,-460.0,0.00021917,2]
[366869811,1750531844280,-479.78950314,0.00021917,2]
[366869812,1750531844289,-460.0,0.00021917,2]
[366869813,1750531844298,-273.72381566,0.00021917,2]
[366869814,1750531844307,-375.91144266,0.00021917,2]
[366869815,1750531844316,-340.49066878,0.00021917,2]
[366869816,1750531844326,-460.79084207,0.00021917,2]
[366869817,1750531844335,-462.97186126,0.00021917,2]
[366869818,1750531844344,-500.0,0.00021917,2]
[366869819,1750531844353,-365.82918022,0.00021917,2]
[366869820,1750531844363,-460.0,0.00021917,2]
[366869821,1750531844372,-460.0,0.00021917,2]
[366869822,1750531844385,-460.0,0.00021917,2]
[366869823,1750531844395,-466.00842066,0.00021917,2]
[366869824,1750531844404,-463.10385678,0.00021917,2]
[366869825,1750531844414,-450.52023403,0.00021917,2]
[366869826,1750531844423,-434.65801738,0.00021917,2]
[366869827,1750531844432,-460.0,0.00021917,2]
[366869828,1750531844442,-365.6134258,0.00021917,2]
[366869829,1750531844451,-151.0,0.00021917,2]
[366869830,1750531844460,-460.0,0.00021917,2]
[366869831,1750531844471,-153.87021193,0.00021917,2]
[366869832,1750531844481,-460.0,0.00021917,2]
[366869833,1750531844549,-460.0,0.00021917,2]
[366869834,1750531844566,-153.76937861,0.00021917,2]
[366869835,1750531844575,-152.79242028,0.00021917,2]